fUST/lending_fUST_20240722
["ID","MTS","AMOUNT","RATE_DAILY","PERIOD"]
[332876906,1721613047027,-3281.33,0.0001589,2]
[332876907,1721613047037,-763.56,0.0001589,2]
[332876908,1721613047046,-638.5,0.0001589,2]
[332876909,1721613047066,-4482.68,0.0001589,2]
[332876910,1721613047077,-644.61,0.0001589,2]
[332876911,1721613047087,-850.61,0.0001589,2]
[332876912,1721613047097,-524.84392387,0.0001589,2]
[332876913,1721613047107,-648.14,0.0001589,2]
[332876914,1721613047117,-2313.44,0.0001589,2]
[332876915,1721613047126,-1229.93,0.0001589,2]
[332876916,1721613047136,-6955.44,0.0001589,2]
[332876917,1721613047146,-500.0,0.0001589,2]
[332876918,1721613047155,-5865.42,0.0001589,2]
[332876919,1721613047165,-500.0,0.0001589,2]
[332876920,1721613047175,-500.0,0.0001589,2]
[332876921,1721613047184,-877.65,0.0001589,2]
[332876922,1721613047194,-559.26855551,0.0001589,2]
[332876923,1721613047204,-500.0,0.0001589,2]
[332876924,1721613047215,-831.66,0.0001589,2]
[332876925,1721613047225,-500.0,0.0001589,2]
[332876926,1721613047236,-491.18,0.0001589,2]
[332876927,1721613047249,-500.0,0.0001589,2]
[332876928,1721613047260,-482.68,0.0001589,2]
[332876929,1721613047270,-500.0,0.0001589,2]
[332876930,1721613047281,-500.0,0.0001589,2]
[332876931,1721613047291,-500.0,0.0001589,2]
[332876932,1721613047301,-500.0,0.0001589,2]
[332876933,1721613047312,-539.22,0.0001589,2]
[332876934,1721613047323,-500.0,0.0001589,2]
[332876935,1721613047333,-500.0,0.0001589,2]
[332876936,1721613047343,-500.0,0.0001589,2]
[332876937,1721613047353,-500.0,0.0001589,2]
[332876938,1721613047362,-500.0,0.0001589,2]
[332876939,1721613047372,-500.0,0.0001589,2]
[332876940,1721613047381,-500.0,0.0001589,2]
[332876941,1721613047391,-630.11,0.0001589,2]
[332876942,1721613047400,-500.0,0.0001589,2]
[332876943,1721613047410,-280.66,0.0001589,2]
[332876944,1721613047419,-500.0,0.0001589,2]
[332876945,1721613047429,-500.0,0.0001589,2]
[332876946,1721613047438,-500.0,0.0001589,2]
[332876947,1721613047448,-500.0,0.0001589,2]
[332876948,1721613047458,-500.0,0.0001589,2]
[332876949,1721613047468,-567.09,0.0001589,2]
[332876950,1721613047478,-150.29,0.0001589,2]
[332876951,1721613047487,-500.0,0.0001589,2]
[332876952,1721613047497,-500.0,0.0001589,2]
[332876953,1721613047507,-500.0,0.0001589,2]
[332876954,1721613047518,-521.07,0.0001589,2]
[332876955,1721613047528,-485.94,0.0001589,2]
[332876956,1721613047538,-500.0,0.0001589,2]
[332876957,1721613047548,-500.0,0.0001589,2]
[332876958,1721613047557,-500.0,0.0001589,2]
[332876959,1721613047567,-826.61,0.0001589,2]
[332876960,1721613047576,-500.0,0.0001589,2]
[332876961,1721613047587,-500.0,0.0001589,2]
[332876962,1721613047596,-500.0,0.0001589,2]
[332876963,1721613047606,-632.02,0.0001589,2]
[332876964,1721613047616,-500.0,0.0001589,2]
[332876965,1721613047626,-580.89,0.0001589,2]
[332876966,1721613047635,-500.0,0.0001589,2]
[332876967,1721613047645,-281.33,0.0001589,2]
[332876968,1721613047655,-500.0,0.0001589,2]
[332876969,1721613047664,-500.0,0.0001589,2]
[332876970,1721613047674,-500.0,0.0001589,2]
[332876971,1721613047683,-500.0,0.0001589,2]
[332876972,1721613047693,-165.28,0.0001589,2]
[332876973,1721613047702,-6122.85,0.0001589,2]
[332876974,1721613047711,-500.0,0.0001589,2]
[332876975,1721613047721,-500.0,0.0001589,2]
[332876976,1721613047730,-500.0,0.0001589,2]
[332876977,1721613047740,-500.0,0.0001589,2]
[332876978,1721613047749,-500.0,0.0001589,2]
[332876979,1721613047758,-500.0,0.0001589,2]
[332876980,1721613047769,-500.0,0.0001589,2]
[332876981,1721613047779,-500.0,0.0001589,2]
[332876982,1721613047788,-500.0,0.0001589,2]
[332876983,1721613047798,-527.23,0.0001589,2]
[332876984,1721613047808,-500.0,0.0001589,2]
[332876985,1721613047817,-1178.55,0.0001589,2]
[332876986,1721613047827,-1672.06,0.0001589,2]
[332876987,1721613047837,-500.0,0.0001589,2]
[332876988,1721613047847,-500.0,0.0001589,2]
[332876989,1721613047857,-500.0,0.0001589,2]
[332876990,1721613047867,-151.0,0.0001589,2]
[332876991,1721613047877,-152.42814,0.0001589,2]
[332876992,1721613047887,-160.223522,0.0001589,2]
[332876993,1721613047900,-151.0,0.0001589,2]
[332876994,1721613047910,-151.0,0.0001589,2]
[332876995,1721613047919,-293.36305,0.0001589,2]
[332876996,1721613047929,-151.0,0.0001589,2]
[332876997,1721613047939,-313.44,0.00015901,2]
[332876998,1721613047949,-383.32,0.00015973,2]
[332876999,1721613047959,-500.0,0.00015973,2]
[332877000,1721613047969,-500.0,0.00015973,2]
[332877001,1721613047979,-421.52,0.00015973,2]
[332877002,1721613047988,-500.0,0.00015973,2]
[332877003,1721613047998,-500.0,0.00015973,2]
[332877004,1721613048007,-500.0,0.00015973,2]
[332877005,1721613048018,-500.0,0.00015981,2]
[332877006,1721613048028,-1770.65,0.00015981,2]
[332877007,1721613048037,-1100.38,0.00015981,2]
[332877008,1721613048047,-500.0,0.00015981,2]
[332877009,1721613048057,-500.0,0.00015981,2]
[332877010,1721613048067,-500.0,0.00015981,2]
[332877011,1721613048077,-500.0,0.00015981,2]
[332877012,1721613048087,-151.0,0.00015981,2]
[332877013,1721613048097,-172.855179,0.00015981,2]
[332877014,1721613048107,-7519.14402006,0.00016,2]
[332877015,1721613048118,-5000.0,0.00016,2]
[332877016,1721613048129,-1000.0,0.00016,13]
[332877017,1721613048140,-3000.0,0.00016,2]
[332877018,1721613048150,-1000.0,0.00016,2]
[332877019,1721613048161,-1667.44620741,0.0001601,2]
[332877020,1721613048475,-359.73822504,0.00015521,2]
[332877021,1721613048486,-1332.55379259,0.0001601,2]
[332877022,1721613048496,-3000.0,0.0001602,2]
[332877023,1721613048508,-3000.0,0.0001603,2]
[332877024,1721613048522,-2292.04401103,0.00016038,2]
[332877025,1721613048536,-2179.98346035,0.00016038,2]
[332877026,1721613048574,-796.06180076,0.00013698,2]
[332877027,1721613048584,-235.90923449,0.00016038,2]
[332877028,1721613048594,-151.0,0.00016038,2]
[332877029,1721613048604,-395.271157,0.00016038,2]
[332877030,1721613048613,-395.271157,0.00016038,2]
[332877031,1721613048623,-151.0,0.00016038,2]
[332877032,1721613048635,-151.0,0.00016038,2]
[332877033,1721613048645,-3000.0,0.0001604,2]
[332877034,1721613048656,-3000.0,0.0001605,2]
[332877035,1721613048666,-235.93648732,0.00016053,2]
[332877036,1721613048676,-500.0,0.00016053,2]
[332877037,1721613048686,-500.0,0.00016053,2]
[332877038,1721613048696,-500.0,0.00016053,2]
[332877039,1721613048706,-500.0,0.00016053,2]
[332877040,1721613048716,-430.2,0.00016053,2]
[332877041,1721613048726,-500.0,0.00016053,2]
[332877042,1721613048737,-500.0,0.00016053,2]
[332877043,1721613048748,-500.0,0.00016053,2]
[332877044,1721613048759,-500.0,0.00016053,2]
[332877045,1721613048770,-500.0,0.00016055,2]
[332877046,1721613048781,-500.0,0.00016055,2]
[332877047,1721613048793,-298.56,0.00016055,2]
[332877048,1721613048803,-244.60563991,0.00016055,2]
[332877049,1721613048814,-500.0,0.00016055,2]
[332877050,1721613048824,-226.63,0.00016055,2]
[332877051,1721613048834,-500.0,0.00016055,2]
[332877052,1721613048845,-355.61261989,0.00016055,2]
[332877053,1721613048854,-416.79,0.00016055,2]
[332877054,1721613048864,-500.0,0.00016055,2]
[332877055,1721613048874,-412.35,0.00016055,2]
[332877056,1721613048885,-306.60221908,0.00016055,2]
[332877057,1721613048895,-500.0,0.00016055,2]
[332877058,1721613048906,-500.0,0.00016055,2]
[332877059,1721613048917,-500.0,0.00016055,2]
[332877060,1721613048927,-500.0,0.00016055,2]
[332877061,1721613048937,-510.73957969,0.00016055,2]
[332877062,1721613048947,-500.0,0.00016055,2]
[332877063,1721613048958,-515.04266821,0.00016055,2]
[332877064,1721613048969,-3000.0,0.0001606,2]
[332877065,1721613048979,-3000.0,0.0001607,2]
[332877066,1721613048989,-3000.0,0.0001608,2]
[332877067,1721613048999,-3000.0,0.0001609,2]
[332877068,1721613049010,-151.0,0.00016094,2]
[332877069,1721613049020,-151.0,0.00016094,2]
[332877070,1721613049030,-3000.0,0.000161,2]
[332877071,1721613049040,-3000.0,0.0001611,2]
[332877072,1721613049050,-3000.0,0.0001612,2]
[332877073,1721613049062,-3000.0,0.0001613,2]
[332877074,1721613049072,-659.88,0.00016137,2]
[332877075,1721613049083,-627.65,0.00016137,2]
[332877076,1721613049093,-500.0,0.00016137,2]
[332877077,1721613049104,-3000.0,0.0001614,2]
[332877078,1721613049114,-151.0,0.0001614,2]
[332877079,1721613049125,-151.0,0.0001614,2]
[332877080,1721613049136,-281.33,0.00016143,2]
[332877081,1721613049146,-500.0,0.00016143,2]
[332877082,1721613049157,-500.0,0.00016146,2]
[332877083,1721613049167,-500.0,0.00016146,2]
[332877084,1721613049178,-255.36,0.00016146,2]
[332877085,1721613049189,-500.0,0.00016146,2]
[332877086,1721613049199,-453.2,0.00016146,2]
[332877087,1721613049210,-500.0,0.00016146,2]
[332877088,1721613049220,-500.0,0.00016146,2]
[332877089,1721613049230,-500.0,0.00016146,2]
[332877090,1721613049241,-500.0,0.00016146,2]
[332877091,1721613049253,-500.0,0.00016146,2]
[332877092,1721613049265,-500.0,0.00016146,2]
[332877093,1721613049276,-500.0,0.00016146,2]
[332877094,1721613049288,-500.0,0.00016146,2]
[332877095,1721613049298,-500.0,0.00016146,2]
[332877096,1721613049308,-500.0,0.00016146,2]
[332877097,1721613049319,-515.13,0.00016146,2]
[332877098,1721613049331,-500.0,0.00016146,2]
[332877099,1721613049343,-500.0,0.00016146,2]
[332877100,1721613049353,-359.08,0.00016146,2]
[332877101,1721613049363,-500.0,0.00016146,2]
[332877102,1721613049374,-500.0,0.00016146,2]
[332877103,1721613049384,-500.0,0.00016146,2]
[332877104,1721613049394,-229.6,0.00016146,2]
[332877105,1721613049404,-500.0,0.00016146,2]
[332877106,1721613049415,-500.0,0.00016146,2]
[332877107,1721613049428,-283.14,0.00016146,2]
[332877108,1721613049438,-500.0,0.00016146,2]
[332877109,1721613049449,-500.0,0.00016146,2]
[332877110,1721613049460,-338.73,0.00016146,2]
[332877111,1721613049472,-500.0,0.00016146,2]
[332877112,1721613049482,-500.0,0.00016146,2]
[332877113,1721613049493,-483.83,0.00016146,2]
[332877114,1721613049504,-500.0,0.00016146,2]
[332877115,1721613049515,-500.0,0.00016146,2]
[332877116,1721613049525,-276.91669801,0.00016146,2]
[332877117,1721613049535,-3000.0,0.0001615,2]
[332877118,1721613049545,-500.0,0.00016152,2]
[332877119,1721613049556,-500.0,0.00016152,2]
[332877120,1721613049566,-500.0,0.00016152,2]
[332877121,1721613049576,-500.0,0.00016152,2]
[332877122,1721613049586,-450.96,0.00016152,2]
[332877123,1721613049597,-500.0,0.00016152,2]
[332877124,1721613049608,-500.0,0.00016152,2]
[332877125,1721613049619,-229.93,0.00016152,2]
[332877126,1721613049629,-500.0,0.00016152,2]
[332877127,1721613049640,-500.0,0.00016152,2]
[332877128,1721613049650,-500.0,0.00016152,2]
[332877129,1721613049661,-500.0,0.00016153,2]
[332877130,1721613049672,-500.0,0.00016153,2]
[332877131,1721613049682,-510.64,0.00016153,2]
[332877132,1721613049692,-500.0,0.00016153,2]
[332877133,1721613049703,-500.0,0.00016153,2]
[332877134,1721613049713,-500.0,0.00016153,2]
[332877135,1721613049723,-500.0,0.00016153,2]
[332877136,1721613049734,-500.0,0.00016153,2]
[332877137,1721613049744,-500.0,0.00016153,2]
[332877138,1721613049755,-500.0,0.00016153,2]
[332877139,1721613049766,-174.9,0.00016153,2]
[332877140,1721613049776,-283.11,0.00016153,2]
[332877141,1721613049786,-500.0,0.00016153,2]
[332877142,1721613049796,-500.0,0.00016153,2]
[332877143,1721613049806,-500.0,0.00016153,2]
[332877144,1721613049816,-598.50153424,0.00016153,2]
[332877145,1721613049825,-500.0,0.00016153,2]
[332877146,1721613049836,-500.0,0.00016154,2]
[332877147,1721613049846,-531.38,0.00016154,2]
[332877148,1721613049855,-214.38,0.00016154,2]
[332877149,1721613049865,-500.0,0.00016154,2]
[332877150,1721613049875,-176.08,0.00016154,2]
[332877151,1721613049885,-500.0,0.00016154,2]
[332877152,1721613049895,-500.0,0.00016154,2]
[332877153,1721613049904,-500.0,0.00016154,2]
[332877154,1721613049913,-567.09916693,0.00016154,2]
[332877155,1721613049923,-500.0,0.00016154,2]
[332877156,1721613049933,-500.0,0.00016154,2]
[332877157,1721613049943,-277.4099997,0.00016154,2]
[332877158,1721613049953,-518.55,0.00016154,2]
[332877159,1721613049963,-500.0,0.00016154,2]
[332877160,1721613049972,-500.0,0.00016154,2]
[332877161,1721613049982,-500.0,0.00016154,2]
[332877162,1721613049992,-500.0,0.00016154,2]
[332877163,1721613050002,-500.0,0.00016154,2]
[332877164,1721613050012,-500.0,0.00016154,2]
[332877165,1721613050022,-461.48,0.00016154,2]
[332877166,1721613050032,-500.0,0.00016154,2]
[332877167,1721613050043,-500.0,0.00016154,2]
[332877168,1721613050054,-245.56,0.00016154,2]
[332877169,1721613050064,-621.49,0.00016154,2]
[332877170,1721613050075,-540.73,0.00016154,2]
[332877171,1721613050085,-500.0,0.00016154,2]
[332877172,1721613050095,-294.14,0.00016154,2]
[332877173,1721613050105,-500.0,0.00016154,2]
[332877174,1721613050116,-500.0,0.00016154,2]
[332877175,1721613050311,-500.0,0.00016154,2]
[332877176,1721613050327,-500.0,0.00016154,2]
[332877177,1721613050336,-151.0,0.00016154,2]
[332877178,1721613050346,-321.188806,0.00016154,2]
[332877179,1721613050355,-151.0,0.00016154,2]
[332877180,1721613050365,-151.0,0.00016154,2]
[332877181,1721613050374,-233.695926,0.00016154,2]
[332877182,1721613050384,-2610.06712584,0.0001616,2]
[332877183,1721613050398,-389.93287416,0.0001616,2]
[332877184,1721613050407,-500.0,0.00016162,2]
[332877185,1721613050417,-500.0,0.00016162,2]
[332877186,1721613050426,-408.83,0.00016162,2]
[332877187,1721613050436,-516.4,0.00016163,2]
[332877188,1721613050446,-539.22,0.00016163,2]
[332877189,1721613050455,-189.8,0.00016163,2]
[332877190,1721613050464,-500.0,0.00016163,2]
[332877191,1721613050473,-500.0,0.00016163,2]
[332877192,1721613050483,-550.09344899,0.00016163,2]
[332877193,1721613050493,-1612.97888311,0.00016164,5]
[332877194,1721613637278,167.4119366,0.0001,7]
[332877195,1721613753406,190.79279841,0.0001,4]
[332877197,1721613795401,1000.0,0.00025,120]
[332877232,1721614232262,-155.40320828,0.0001,2]
[332877233,1721614232272,-24900.0,0.00012832,2]
[332877234,1721614232284,-933.45562611,0.00013598,2]
[332877235,1721614232294,-6853.91809506,0.00013688,2]
[332877242,1721614238512,-412.80292201,0.00013688,2]
[332877243,1721614238524,-501179.80187693,0.00013688,2]
[332877244,1721614238533,-950.79,0.00013698,2]
[332877245,1721614238543,-546.60212975,0.00013698,2]
[332877246,1721614238553,-500.0,0.00013698,2]
[332877247,1721614238563,-503.82607562,0.00013698,2]
[332877248,1721614238573,-553.82563815,0.00013698,2]
[332877249,1721614238583,-500.0,0.00013698,2]
[332877250,1721614238594,-500.0,0.00013698,2]
[332877251,1721614238605,-500.0,0.00013698,2]
[332877252,1721614238616,-503.89535652,0.00013698,2]
[332877253,1721614238632,-500.0,0.00013698,2]
[332877254,1721614238641,-500.0,0.00013698,2]
[332877255,1721614238651,-500.0,0.00013698,2]
[332877256,1721614238661,-500.0,0.00013698,2]
[332877257,1721614238671,-500.0,0.00013698,2]
[332877258,1721614238682,-500.0,0.00013698,2]
[332877259,1721614238693,-500.0,0.00013698,2]
[332877260,1721614238707,-503.94716429,0.00013698,2]
[332877261,1721614238718,-500.0,0.00013698,2]
[332877262,1721614238728,-500.0,0.00013698,2]
[332877263,1721614238740,-612.57565108,0.00013698,2]
[332877264,1721614238750,-500.0,0.00013698,2]
[332877265,1721614238761,-501.26675335,0.00013698,2]
[332877266,1721614238772,-500.0,0.00013698,2]
[332877267,1721614238782,-500.0,0.00013698,2]
[332877268,1721614238792,-500.0,0.00013698,2]
[332877269,1721614238802,-506.11841399,0.00013698,2]
[332877270,1721614238812,-501.30523314,0.00013698,2]
[332877271,1721614238822,-501.89306793,0.00013698,2]
[332877272,1721614238832,-511.14918565,0.00013698,2]
[332877273,1721614238841,-458.76583086,0.00013698,2]
[332877274,1721614238851,-500.0,0.00013698,2]
[332877275,1721614238860,-500.0,0.00013698,2]
[332877276,1721614238869,-500.0,0.00013698,2]
[332877277,1721614238878,-500.0,0.00013698,2]
[332877278,1721614238888,-374.15193267,0.00013698,2]
[332877279,1721614238897,-500.0,0.00013698,2]
[332877280,1721614238907,-500.0,0.00013698,2]
[332877281,1721614238919,-500.0,0.00013698,2]
[332877282,1721614238929,-500.0,0.00013698,2]
[332877283,1721614238938,-504.28933162,0.00013698,2]
[332877284,1721614238947,-171.72094386,0.00013698,2]
[332877285,1721614238957,-500.0,0.00013698,2]
[332877286,1721614238966,-500.0,0.00013698,2]
[332877287,1721614238976,-500.0,0.00013698,2]
[332877288,1721614238987,-500.0,0.00013698,2]
[332877289,1721614238996,-500.0,0.00013698,2]
[332877290,1721614239005,-500.0,0.00013698,2]
[332877291,1721614239015,-500.0,0.00013698,2]
[332877292,1721614239024,-500.0,0.00013698,2]
[332877293,1721614239033,-500.0,0.00013698,2]
[332877294,1721614239043,-501.89685801,0.00013698,2]
[332877295,1721614239053,-500.0,0.00013698,2]
[332877296,1721614239063,-500.0,0.00013698,2]
[332877297,1721614239076,-506.16326635,0.00013698,2]
[332877298,1721614239087,-502.5171662,0.00013698,2]
[332877299,1721614239098,-500.0,0.00013698,2]
[332877300,1721614239109,-504.14101277,0.00013698,2]
[332877301,1721614239119,-232.33119763,0.00013698,2]
[332877302,1721614239128,-500.0,0.00013698,2]
[332877303,1721614239140,-506.05601306,0.00013698,2]
[332877304,1721614239150,-505.20749612,0.00013698,2]
[332877305,1721614239160,-522.32467591,0.00013698,2]
[332877306,1721614239169,-500.0,0.00013698,2]
[332877307,1721614239179,-500.0,0.00013698,2]
[332877308,1721614239188,-500.0,0.00013698,2]
[332877309,1721614239198,-594.07160015,0.00013698,2]
[332877310,1721614239208,-500.0,0.00013698,2]
[332877311,1721614239217,-1806.92,0.00013698,2]
[332877312,1721614239227,-202.55632502,0.00013698,2]
[332877313,1721614239236,-500.0,0.00013698,2]
[332877314,1721614239246,-500.0,0.00013698,2]
[332877315,1721614239255,-505.07116324,0.00013698,2]
[332877316,1721614239267,-500.0,0.00013698,2]
[332877317,1721614239278,-500.0,0.00013698,2]
[332877318,1721614239287,-500.0,0.00013698,2]
[332877319,1721614239297,-349.1682991,0.00013698,2]
[332877320,1721614239307,-500.0,0.00013698,2]
[332877321,1721614239316,-500.0,0.00013698,2]
[332877322,1721614239325,-500.0,0.00013698,2]
[332877323,1721614239335,-500.0,0.00013698,2]
[332877324,1721614239346,-224.51156347,0.00013698,2]
[332877325,1721614239357,-500.0,0.00013698,2]
[332877326,1721614239366,-500.0,0.00013698,2]
[332877327,1721614239375,-500.0,0.00013698,2]
[332877328,1721614239384,-500.0,0.00013698,2]
[332877329,1721614239394,-503.48151961,0.00013698,2]
[332877330,1721614239404,-507.54327837,0.00013698,2]
[332877331,1721614239413,-500.0,0.00013698,2]
[332877332,1721614239423,-500.0,0.00013698,2]
[332877333,1721614239433,-506.9929392,0.00013698,2]
[332877334,1721614239443,-500.0,0.00013698,2]
[332877335,1721614239453,-500.0,0.00013698,2]
[332877336,1721614239463,-500.0,0.00013698,2]
[332877337,1721614239472,-500.0,0.00013698,2]
[332877338,1721614239482,-500.0,0.00013698,2]
[332877339,1721614239492,-504.45664161,0.00013698,2]
[332877340,1721614239501,-500.0,0.00013698,2]
[332877341,1721614239512,-503.02447703,0.00013698,2]
[332877342,1721614239522,-504.47386768,0.00013698,2]
[332877343,1721614239532,-1508.6,0.00013698,2]
[332877344,1721614239541,-500.0,0.00013698,2]
[332877345,1721614239550,-502.70405058,0.00013698,2]
[332877346,1721614239559,-500.0,0.00013698,2]
[332877347,1721614239568,-504.28377671,0.00013698,2]
[332877348,1721614239578,-500.0,0.00013698,2]
[332877349,1721614239587,-500.0,0.00013698,2]
[332877350,1721614239596,-518.26231982,0.00013698,2]
[332877351,1721614239605,-506.51256414,0.00013698,2]
[332877352,1721614239615,-500.0,0.00013698,2]
[332877353,1721614239628,-500.0,0.00013698,2]
[332877354,1721614239637,-800.27,0.00013698,2]
[332877355,1721614239646,-503.94767207,0.00013698,2]
[332877356,1721614239656,-800.27,0.00013698,2]
[332877357,1721614239666,-800.27,0.00013698,2]
[332877358,1721614239676,-500.0,0.00013698,2]
[332877359,1721614239686,-800.27,0.00013698,2]
[332877360,1721614239696,-800.27,0.00013698,2]
[332877361,1721614239706,-800.27,0.00013698,2]
[332877362,1721614239716,-412.15783446,0.00013698,2]
[332877363,1721614239726,-800.27,0.00013698,2]
[332877365,1721614239735,-800.27,0.00013698,2]
[332877367,1721614239744,-800.27,0.00013698,2]
[332877369,1721614239753,-800.27,0.00013698,2]
[332877371,1721614239769,-800.27,0.00013698,2]
[332877373,1721614239778,-800.27,0.00013698,2]
[332877374,1721614239788,-500.0,0.00013698,2]
[332877375,1721614239797,-500.0,0.00013698,2]
[332877376,1721614239806,-500.0,0.00013698,2]
[332877377,1721614239815,-800.27,0.00013698,2]
[332877378,1721614239824,-800.27,0.00013698,2]
[332877379,1721614239833,-800.27,0.00013698,2]
[332877380,1721614239842,-800.27,0.00013698,2]
[332877381,1721614239851,-800.27,0.00013698,2]
[332877382,1721614239861,-800.27,0.00013698,2]
[332877383,1721614239870,-800.27,0.00013698,2]
[332877384,1721614239880,-800.27,0.00013698,2]
[332877385,1721614239889,-800.27,0.00013698,2]
[332877386,1721614239898,-500.0,0.00013698,2]
[332877387,1721614239908,-500.0,0.00013698,2]
[332877388,1721614239918,-800.27,0.00013698,2]
[332877389,1721614239927,-800.27,0.00013698,2]
[332877390,1721614239936,-800.40094083,0.00013698,2]
[332877391,1721614239946,-509.54338405,0.00013698,2]
[332877392,1721614239955,-500.0,0.00013698,2]
[332877393,1721614239965,-503.45492094,0.00013698,2]
[332877394,1721614239974,-500.0,0.00013698,2]
[332877395,1721614239984,-505.59123816,0.00013698,2]
[332877397,1721614239993,-500.0,0.00013698,2]
[332877398,1721614240002,-500.0,0.00013698,2]
[332877399,1721614240013,-500.0,0.00013698,2]
[332877400,1721614240024,-500.0,0.00013698,2]
[332877401,1721614240033,-500.0,0.00013698,2]
[332877402,1721614240042,-320.73733954,0.00013698,2]
[332877403,1721614240051,-500.0,0.00013698,2]
[332877404,1721614240060,-504.4189685,0.00013698,2]
[332877405,1721614240070,-500.0,0.00013698,2]
[332877406,1721614240080,-500.89573504,0.00013698,2]
[332877407,1721614240089,-500.0,0.00013698,2]
[332877408,1721614240098,-724.15,0.00013698,2]
[332877409,1721614240107,-724.15,0.00013698,2]
[332877410,1721614240116,-724.15,0.00013698,2]
[332877411,1721614240125,-319.33455858,0.00013698,2]
[332877412,1721614240134,-724.15,0.00013698,2]
[332877413,1721614240143,-724.15,0.00013698,2]
[332877414,1721614240152,-506.88,0.00013698,2]
[332877415,1721614240161,-724.15,0.00013698,2]
[332877416,1721614240170,-724.15,0.00013698,2]
[332877417,1721614240179,-724.15,0.00013698,2]
[332877418,1721614240188,-724.15,0.00013698,2]
[332877419,1721614240198,-724.15,0.00013698,2]
[332877420,1721614240208,-724.15,0.00013698,2]
[332877421,1721614240217,-724.15,0.00013698,2]
[332877422,1721614240227,-505.68234669,0.00013698,2]
[332877423,1721614240236,-724.15,0.00013698,2]
[332877424,1721614240245,-724.15,0.00013698,2]
[332877425,1721614240254,-500.0,0.00013698,2]
[332877426,1721614240266,-724.15,0.00013698,2]
[332877427,1721614240275,-724.15,0.00013698,2]
[332877428,1721614240284,-724.15,0.00013698,2]
[332877429,1721614240293,-500.0,0.00013698,2]
[332877430,1721614240302,-724.15,0.00013698,2]
[332877431,1721614240312,-504.95529347,0.00013698,2]
[332877432,1721614240321,-248.33983644,0.00013698,2]
[332877433,1721614240330,-500.0,0.00013698,2]
[332877434,1721614240339,-504.49073028,0.00013698,2]
[332877435,1721614240347,-500.0,0.00013698,2]
[332877436,1721614240357,-504.85668131,0.00013698,2]
[332877437,1721614240367,-500.0,0.00013698,2]
[332877438,1721614240376,-500.85060824,0.00013698,2]
[332877439,1721614240385,-500.0,0.00013698,2]
[332877440,1721614240394,-500.0,0.00013698,2]
[332877441,1721614240403,-502.38733156,0.00013698,2]
[332877442,1721614240412,-500.0,0.00013698,2]
[332877443,1721614240422,-500.0,0.00013698,2]
[332877444,1721614240431,-503.34543243,0.00013698,2]
[332877445,1721614240440,-503.91550482,0.00013698,2]
[332877446,1721614240451,-561.59196261,0.00013698,2]
[332877447,1721614240459,-500.0,0.00013698,2]
[332877448,1721614240468,-500.0,0.00013698,2]
[332877449,1721614240478,-500.0,0.00013698,2]
[332877450,1721614240487,-500.0,0.00013698,2]
[332877451,1721614240497,-500.0,0.00013698,2]
[332877452,1721614240506,-500.0,0.00013698,2]